fUSD/lending_fUSD_20260128
["ID","MTS","AMOUNT","RATE_DAILY","PERIOD"]
[403882625,1769626238273,-0.29352723,0.00017866,2]
[403882627,1769626238283,-485.4300017,0.00017866,2]
[403882629,1769626238294,-4200.32268674,0.00017866,2]
[403882631,1769626238303,-852.58865936,0.00017898,2]
[403882633,1769626238313,-947.98597315,0.00017898,2]
[403882635,1769626238324,-1602.57379864,0.00017898,2]
[403882637,1769626238334,-621.60028708,0.00017898,2]
[403883192,1769626243470,-462.28138314,0.00017877,2]
[403883294,1769626245622,-424.99999995,0.00017877,2]
[403883295,1769626245633,-2317.68133411,0.00017877,2]
[403883305,1769627287570,3293.303213,7.945e-05,2]
[403883306,1769627299427,1414.51063112,0.00013605,2]
[403883307,1769627299449,6252.09936888,0.00013605,2]
[403883309,1769627431579,-166.66,0.00015868,2]
[403883310,1769627431589,-436.74360326,0.00015924,2]
[403883311,1769627431600,-27.9971415,0.00016026,2]
[403883312,1769627431611,-123.0028585,0.00016026,2]
[403883313,1769627431621,-151.0,0.00016032,2]
[403883314,1769627431631,-150.72675603,0.00016202,2]
[403883315,1769627431643,-15.93324397,0.00016202,2]
[403883316,1769627431652,-200.0,0.00016344,2]
[403883317,1769627431662,-300.0,0.00016372,2]
[403883318,1769627431672,-666.8594908,0.00016372,2]
[403883319,1769627431683,-533.1405092,0.00016372,2]
[403883320,1769627431692,-501.32971868,0.00016373,2]
[403883321,1769627431701,-500.0,0.00016373,2]
[403883322,1769627431710,-500.0,0.00016373,2]
[403883323,1769627431720,-500.0,0.00016373,2]
[403883324,1769627431728,-170.24942806,0.00016373,2]
[403883325,1769627431737,-500.0,0.00016373,2]
[403883326,1769627431746,-439.28171452,0.00016373,2]
[403883327,1769627431761,-58.45162422,0.00016373,2]
[403883328,1769627431770,-500.0,0.00016373,2]
[403883329,1769627431779,-341.54837578,0.00016373,2]
[403883330,1769627431791,-158.45162422,0.00016373,2]
[403883332,1769627431801,-500.0,0.00016373,2]
[403883334,1769627431810,-500.0,0.00016373,2]
[403883335,1769627431819,-500.0,0.00016373,2]
[403883337,1769627431829,-500.0,0.00016373,2]
[403883339,1769627431838,-500.0,0.00016373,2]
[403883341,1769627431849,-500.0,0.00016375,2]
[403883344,1769627431858,-569.05785463,0.00016416,2]
[403883347,1769627431873,-2670.94214537,0.00016416,2]
[403883348,1769627431882,-203.55,0.0001653,2]
[403883349,1769627431891,-166.66,0.00016536,2]
[403883350,1769627431900,-1852.42,0.00016581,2]
[403883351,1769627431909,-166.66,0.0001687,2]
[403883352,1769627431920,-1000.0,0.00016921,2]
[403883353,1769627431928,-5900.96,0.00016921,2]
[403883354,1769627431938,-1000.0,0.00016921,2]
[403883355,1769627431947,-1000.0,0.00016921,2]
[403883356,1769627431957,-1000.0,0.00016921,2]
[403883357,1769627431967,-1000.0,0.00016921,2]
[403883358,1769627431976,-1000.0,0.00016921,2]
[403883359,1769627431986,-1000.0,0.00016921,2]
[403883360,1769627431995,-154.01,0.00016933,2]
[403883361,1769627432004,-150.0,0.00016991,2]
[403883362,1769627432014,-227.08,0.00017002,2]
[403883363,1769627432026,-1822.56,0.00017016,2]
[403883364,1769627432036,-166.66,0.00017204,2]
[403883365,1769627432046,-166.66,0.00017317,2]
[403883366,1769627432056,-500.0,0.00017407,2]
[403883367,1769627432066,-500.0,0.00017407,2]
[403883368,1769627432076,-500.0,0.00017462,2]
[403883369,1769627432085,-500.0,0.00017462,2]
[403883370,1769627432097,-1500.0,0.00017468,2]
[403883371,1769627432107,-1500.0,0.00017468,2]
[403883372,1769627432116,-1500.0,0.00017468,2]
[403883373,1769627432126,-1500.0,0.00017468,2]
[403883374,1769627432135,-314.99405907,0.00017468,2]
[403883375,1769627432144,-500.0,0.00017517,2]
[403883376,1769627432154,-500.0,0.00017517,2]
[403883377,1769627432163,-166.66,0.00017538,2]
[403883378,1769627432173,-500.0,0.00017571,2]
[403883379,1769627432184,-5564.32612814,0.00017582,2]
[403883380,1769627432193,-5564.32612814,0.00017617,2]
[403883381,1769627432203,-500.0,0.00017626,2]
[403883382,1769627432212,-500.0,0.00017646,2]
[403883383,1769627432222,-500.0,0.00017646,2]
[403883384,1769627432231,-304.53894038,0.00017646,2]
[403883385,1769627432241,-500.0,0.00017646,2]
[403883386,1769627432250,-500.0,0.00017646,2]
[403883387,1769627432259,-298.53222254,0.00017646,2]
[403883388,1769627432268,-500.0,0.00017646,2]
[403883389,1769627432277,-500.0,0.00017646,2]
[403883390,1769627432286,-644.24924335,0.00017646,2]
[403883391,1769627432295,-500.0,0.00017646,2]
[403883392,1769627432304,-500.0,0.00017646,2]
[403883393,1769627432313,-500.0,0.00017646,2]
[403883394,1769627432323,-472.27397257,0.00017646,2]
[403883395,1769627432332,-500.0,0.00017646,2]
[403883396,1769627432341,-500.0,0.00017646,2]
[403883397,1769627432350,-500.0,0.00017646,2]
[403883398,1769627432358,-500.0,0.00017646,2]
[403883399,1769627432367,-500.0,0.00017646,2]
[403883400,1769627432376,-500.0,0.00017646,2]
[403883401,1769627432385,-500.0,0.00017646,2]
[403883402,1769627432394,-500.0,0.00017646,2]
[403883403,1769627432403,-500.0,0.00017646,2]
[403883404,1769627432411,-500.0,0.00017646,2]
[403883405,1769627432420,-500.0,0.00017646,2]
[403883406,1769627432429,-500.0,0.00017646,2]
[403883407,1769627432438,-500.0,0.00017646,2]
[403883408,1769627432448,-500.0,0.00017646,2]
[403883409,1769627432458,-500.0,0.00017646,2]
[403883410,1769627432469,-500.0,0.00017646,2]
[403883411,1769627432478,-5564.32612814,0.00017653,2]
[403883412,1769627432487,-200.0,0.00017671,2]
[403883413,1769627432498,-151.0,0.00017671,2]
[403883414,1769627432508,-151.0,0.00017671,2]
[403883415,1769627432518,-151.0,0.00017671,2]
[403883416,1769627432527,-151.0,0.00017671,2]
[403883417,1769627432536,-151.0,0.00017671,2]
[403883418,1769627432547,-151.0,0.00017671,2]
[403883419,1769627432556,-151.0,0.00017671,2]
[403883420,1769627432565,-151.0,0.00017671,2]
[403883421,1769627432574,-151.0,0.00017671,2]
[403883422,1769627432583,-151.0,0.00017671,2]
[403883423,1769627432594,-135.67782355,0.00017671,2]
[403883424,1769627432606,-139.48793778,0.00017671,2]
[403883425,1769627432615,-646.63782478,0.00017671,2]
[403883426,1769627432623,-167.46,0.00017672,3]
[403883427,1769627432632,-151.0,0.00017679,2]
[403883428,1769627432642,-500.0,0.00017681,2]
[403883429,1769627432651,-988.89,0.00017681,2]
[403883430,1769627432663,-2757.52423744,0.00017682,2]
[403883434,1769627437653,-15210.29945929,0.00017682,2]
[403883435,1769627437665,-3545.62120439,0.00017682,2]
[403883436,1769627437677,-61294.69061308,0.00017682,2]
[403883437,1769627437687,-33642.1478615,0.00017682,2]
[403883438,1769627437696,-6982.0613092,0.00017682,2]
[403883439,1769627437706,-5564.32612814,0.00017688,2]
[403883440,1769627437717,-5564.32612814,0.00017723,2]
[403883441,1769627437727,-500.0,0.00017736,2]
[403883442,1769627437737,-5564.32612814,0.00017759,2]
[403883443,1769627437746,-500.0,0.00017791,2]
[403883444,1769627437756,-5564.32612814,0.00017794,2]
[403883445,1769627437765,-157.4586,0.000178,2]
[403883446,1769627437774,-1000.0,0.000178,2]
[403883447,1769627437784,-5564.32612814,0.00017829,2]
[403883448,1769627437793,-500.0,0.00017845,2]
[403883449,1769627437802,-5564.32612814,0.00017865,2]
[403883451,1769627437811,-500.0,0.0001788,2]
[403883452,1769627437821,-1000.0,0.00017887,2]
[403883453,1769627437830,-166.66,0.00017889,2]
[403883454,1769627437840,-165.31,0.0001789,2]
[403883455,1769627437851,-420.0,0.00017893,2]
[403883456,1769627437861,-151.0,0.00017897,2]
[403883457,1769627437870,-151.0,0.00017897,2]
[403883458,1769627437880,-540.89,0.00017897,2]
[403883459,1769627437890,-540.89,0.00017897,2]
[403883460,1769627437900,-540.89,0.00017897,2]
[403883461,1769627437909,-540.89,0.00017897,2]
[403883462,1769627437919,-540.89,0.00017897,2]
[403883463,1769627437928,-540.89,0.00017897,2]
[403883464,1769627437938,-540.89,0.00017897,2]
[403883465,1769627437948,-540.89,0.00017897,2]
[403883466,1769627437957,-540.89,0.00017897,2]
[403883467,1769627437967,-540.89,0.00017897,2]
[403883468,1769627437976,-540.89,0.00017897,2]
[403883469,1769627437986,-540.89,0.00017897,2]
[403883470,1769627437995,-540.89,0.00017897,2]
[403883471,1769627438004,-540.89,0.00017897,2]
[403883472,1769627438014,-540.89,0.00017897,2]
[403883473,1769627438027,-540.89,0.00017897,2]
[403883474,1769627438037,-540.89,0.00017897,2]
[403883475,1769627438047,-540.89,0.00017897,2]
[403883476,1769627438059,-540.89,0.00017897,2]
[403883477,1769627438069,-540.89,0.00017897,2]
[403883479,1769627438079,-540.89,0.00017897,2]
[403883481,1769627438090,-540.89,0.00017897,2]
[403883483,1769627438101,-540.89,0.00017897,2]
[403883484,1769627438112,-540.98,0.00017897,2]
[403883486,1769627438122,-3193.88459256,0.00017898,2]
[403883488,1769627438132,-151.0,0.00017898,2]
[403883490,1769627438142,-524.27120234,0.00017898,2]
[403883492,1769627438151,-200.0,0.00017898,2]
[403883494,1769627438160,-200.0,0.00017898,2]
[403883496,1769627438170,-500.0,0.00017899,2]
[403883498,1769627438180,-500.0,0.00017899,2]
[403883500,1769627438189,-500.0,0.00017899,2]
[403883501,1769627438199,-500.0,0.00017899,2]
[403883503,1769627438208,-500.0,0.00017899,2]
[403883505,1769627438218,-500.0,0.00017899,2]
[403883507,1769627438227,-500.0,0.00017899,2]
[403883509,1769627438236,-500.0,0.00017899,2]
[403883511,1769627438245,-500.0,0.00017899,2]
[403883513,1769627438255,-500.0,0.00017899,2]
[403883515,1769627438264,-500.0,0.00017899,2]
[403883516,1769627438273,-500.0,0.00017899,2]
[403883518,1769627438283,-500.0,0.00017899,2]
[403883520,1769627438292,-500.0,0.00017899,2]
[403883522,1769627438302,-500.0,0.00017899,2]
[403883524,1769627438311,-288.92862309,0.00017899,2]
[403883526,1769627438320,-500.0,0.00017899,2]
[403883528,1769627438329,-500.0,0.00017899,2]
[403883530,1769627438339,-500.0,0.00017899,2]
[403883531,1769627438349,-500.0,0.00017899,2]
[403883533,1769627438359,-500.0,0.00017899,2]
[403883534,1769627438368,-500.0,0.00017899,2]
[403883535,1769627438377,-161.02719994,0.000179,2]
[403883536,1769627438387,-408.84237778,0.000179,2]
[403883537,1769627438397,-264948.4845633,0.000179,2]
[403883538,1769627438407,-5564.32612814,0.000179,2]
[403883539,1769627438416,-1039.95171245,0.000179,2]
[403883540,1769627438426,-274.84271298,0.000179,2]
[403883541,1769627438436,-212.08876731,0.000179,2]
[403883542,1769627438445,-1762.00060636,0.000179,2]
[403883543,1769627438455,-247.57411083,0.000179,2]
[403883544,1769627438465,-653.35199548,0.000179,2]
[403883545,1769627438474,-1152.59036431,0.000179,2]
[403883546,1769627438485,-1724.20625311,0.000179,2]
[403883547,1769627438494,-2332.9053,0.000179,2]
[403883548,1769627438504,-517.85965192,0.000179,2]
[403883549,1769627438513,-988.89,0.00017955,2]
[403883550,1769627438523,-480.0,0.00017982,2]
[403883551,1769627438533,-155.60519804,0.0001799,2]
[403883552,1769627438543,-155.60519804,0.0001799,2]
[403883554,1769627438552,-152.21,0.0001799,2]
[403883555,1769627438561,-152.21,0.0001799,2]
[403883557,1769627438570,-152.21,0.0001799,2]
[403883559,1769627438579,-152.21,0.0001799,2]
[403883561,1769627438589,-152.21,0.0001799,2]
[403883563,1769627438599,-152.21,0.0001799,2]
[403883565,1769627438609,-152.21,0.0001799,2]
[403883567,1769627438619,-152.21,0.0001799,2]
[403883569,1769627438628,-152.21,0.0001799,2]
[403883571,1769627438638,-152.21,0.0001799,2]
[403883573,1769627438647,-152.21,0.0001799,2]
[403883575,1769627438657,-152.21,0.0001799,2]
[403883577,1769627438666,-165.31,0.0001799,2]
[403883579,1769627438675,-165.31,0.0001799,2]
[403883581,1769627438684,-154.01,0.00017991,2]
[403883583,1769627438694,-151.0,0.00017997,2]
[403883585,1769627438703,-500.0,0.00017999,2]
[403883587,1769627438713,-298.742,0.00017999,2]
[403883589,1769627438722,-500.0,0.00017999,2]
[403883591,1769627438731,-500.0,0.00017999,2]
[403883593,1769627438740,-568.58467958,0.00017999,2]
[403883595,1769627438749,-500.0,0.00017999,2]
[403883597,1769627438758,-500.0,0.00017999,2]
[403883599,1769627438769,-500.0,0.00017999,2]
[403883601,1769627438779,-150.0,0.00017999,2]
[403883603,1769627438788,-150.0,0.00017999,2]
[403883605,1769627438798,-150.0,0.00017999,2]
[403883607,1769627438807,-385.18354163,0.00017999,2]
[403883609,1769627438816,-4171281.68688078,0.00018,2]
[403883611,1769627438826,-13560.0,0.00018,2]
[403883613,1769627438835,-903409.10281545,0.00018,2]
[403883615,1769627438844,-200.0,0.00018,2]
[403883617,1769627438854,-200.0,0.00018,2]
[403883619,1769627438863,-187.547238,0.00018,2]
[403883621,1769627438873,-151.0,0.00018,2]
[403883623,1769627438882,-151.0,0.00018,2]
[403883625,1769627438891,-183.823457,0.00018,2]
[403883627,1769627438901,-504.0,0.00018,2]
[403883629,1769627438910,-151.0,0.00018,2]
[403883631,1769627438919,-182.151953,0.00018,2]
[403883633,1769627438929,-182.151953,0.00018,2]
[403883635,1769627438938,-182.151953,0.00018,2]
[403883637,1769627438948,-182.151953,0.00018,2]
[403883639,1769627438958,-151.0,0.00018,2]
[403883641,1769627438967,-151.0,0.00018,2]
[403883643,1769627438977,-151.0,0.00018,2]
[403883645,1769627438987,-151.0,0.00018,2]
[403883647,1769627438997,-151.0,0.00018,2]
[403883649,1769627439006,-151.0,0.00018,2]
[403883651,1769627439017,-218.159228,0.00018,2]
[403883653,1769627439030,-218.159228,0.00018,2]
[403883655,1769627439040,-218.159228,0.00018,2]
[403883657,1769627439050,-218.159228,0.00018,2]
[403883659,1769627439059,-218.159228,0.00018,2]
[403883661,1769627439071,-218.159228,0.00018,2]
[403883663,1769627439081,-218.159228,0.00018,2]
[403883665,1769627439090,-218.159228,0.00018,2]
[403883667,1769627439102,-1305.7,0.00018,2]
[403883669,1769627439114,-1305.7,0.00018,2]
[403883671,1769627439124,-1305.7,0.00018,2]
[403883673,1769627439134,-1305.7,0.00018,2]
[403883675,1769627439144,-1305.7,0.00018,2]
[403883677,1769627439154,-1305.7,0.00018,2]
[403883679,1769627439164,-1305.7,0.00018,2]
[403883681,1769627439173,-2092.2,0.00018,2]
[403883683,1769627439183,-1428.06099131,0.00018016,2]
[403883685,1769627439193,-484.2666436,0.00018016,2]
[403883687,1769627439203,-2000.0,0.00018016,2]
[403883689,1769627439212,-2000.0,0.00018016,2]
[403883691,1769627439222,-1000.0,0.00018023,2]
[403883693,1769627439231,-200.0,0.00018077,2]
[403883695,1769627439240,-200.0,0.00018077,2]
[403883697,1769627439249,-200.0,0.00018082,2]
[403883699,1769627439258,-1779.11882968,0.000181,2]
[403883701,1769627439268,-168.0,0.00018149,2]
[403883703,1769627439277,-200.0,0.0001818,2]
[403883705,1769627439287,-200.0,0.0001818,2]
[403883707,1769627439297,-200.0,0.00018219,2]
[403883709,1769627439306,-329.0,0.00018225,2]
[403883711,1769627439315,-988.89,0.00018229,2]
[403883713,1769627439326,-500.0,0.00018247,2]
[403883716,1769627439340,-155.0,0.00018256,2]
[403883717,1769627439351,-200.0,0.00018258,2]
[403883719,1769627439361,-168.0,0.00018287,2]
[403883722,1769627439371,-329.0,0.00018297,2]
[403883724,1769627439381,-76887.98,0.00018356,2]
[403883726,1769627439390,-200.0,0.00018362,2]
[403883728,1769627439400,-200.0,0.00018362,2]
[403883730,1769627439409,-150.0,0.00018386,2]
[403883732,1769627439419,-150.0,0.00018386,2]
[403883734,1769627439428,-329.0,0.0001843,2]
[403883736,1769627439438,-200.0,0.0001844,2]
[403883738,1769627439447,-168.0,0.00018441,2]
[403883740,1769627439456,-166.66,0.0001846,2]
[403883742,1769627439465,-200.0,0.00018461,2]
[403883744,1769627439475,-988.89,0.00018503,2]
[403883746,1769627439484,-155.0,0.00018513,2]
[403883748,1769627439494,-168.0,0.00018522,2]
[403883750,1769627439504,-200.0,0.00018545,2]
[403883752,1769627439514,-200.0,0.00018545,2]
[403883754,1769627439525,-329.0,0.0001855,2]
[403883756,1769627439535,-2500.0,0.00018564,2]
[403883758,1769627439545,-2500.0,0.00018564,2]
[403883760,1769627439554,-1000.0,0.00018674,2]
[403883762,1769627439563,-168.0,0.00018716,2]
[403883764,1769627439573,-200.0,0.00018731,2]
[403883766,1769627439583,-200.0,0.00018731,2]
[403883768,1769627439592,-155.0,0.0001877,2]
[403883770,1769627439603,-988.89,0.00018777,2]
[403883772,1769627439612,-500.0,0.00018943,2]
[403883774,1769627439621,-377.89666009,0.00019,2]
[403883776,1769627439631,-151.0,0.00019006,2]
[403883778,1769627439640,-1000.0,0.00019009,2]
[403883780,1769627439649,-329.0,0.00019009,2]
[403883782,1769627439658,-155.0,0.00019028,2]
[403883784,1769627439667,-166.66,0.00019032,2]
[403883786,1769627439677,-154.01,0.0001905,2]
[403883788,1769627439686,-988.89,0.00019051,2]
[403883790,1769627439696,-168.0,0.00019106,2]
[403883792,1769627439706,-3000.0,0.00019112,2]
[403883794,1769627439715,-2131.17868896,0.00019112,2]
[403883796,1769627439725,-168.0,0.00019119,2]
[403883799,1769627439736,-168.0,0.00019136,2]
[403883801,1769627439745,-329.0,0.0001915,2]
[403883803,1769627439755,-500.0,0.00019178,2]
[403883804,1769627439764,-500.0,0.00019178,2]
[403883807,1769627439774,-291.76806807,0.00019178,2]
[403883809,1769627439784,-168.0,0.00019198,2]
[403883811,1769627439794,-329.0,0.0001926,2]
[403883813,1769627439804,-155.0,0.00019285,2]
[403883815,1769627439813,-329.0,0.0001929,2]
[403883817,1769627439823,-168.0,0.000193,2]
[403883819,1769627439831,-988.89,0.00019325,2]
[403883861,1769627440211,-1000.0,0.00019326,2]
[403883863,1769627440220,-168.0,0.00019367,2]
[403883865,1769627440230,-329.0,0.00019515,2]
[403883867,1769627440238,-168.0,0.0001952,2]
[403883869,1769627440248,-155.0,0.00019542,2]
[403883871,1769627440257,-587.0,0.00019555,2]
[403883873,1769627440266,-988.92,0.00019599,2]
[403883875,1769627440275,-166.66,0.00019604,2]
[403883877,1769627440284,-329.0,0.00019677,2]
[403883879,1769627440292,-1500.0,0.000197,2]
[403883881,1769627440302,-168.0,0.00019797,2]
[403883883,1769627440311,-155.0,0.00019799,2]
[403883885,1769627440320,-329.0,0.00019807,2]
[403883887,1769627440329,-168.0,0.00019823,2]
[403883889,1769627440338,-151.0,0.00019927,2]
[403883891,1769627440348,-151.0,0.00019927,2]
[403883893,1769627440356,-182.151953,0.00019927,2]
[403883895,1769627440365,-182.151953,0.00019927,2]
[403883897,1769627440374,-182.151953,0.00019927,2]
[403883899,1769627440384,-182.151953,0.00019927,2]
[403883901,1769627440393,-151.0,0.00019927,2]
[403883903,1769627440403,-151.0,0.00019927,2]
[403883905,1769627440412,-151.0,0.00019927,2]
[403883907,1769627440421,-218.159228,0.00019927,2]
[403883909,1769627440430,-218.159228,0.00019927,2]
[403883911,1769627440439,-218.159228,0.00019927,2]
[403883913,1769627440448,-218.159228,0.00019927,2]
[403883915,1769627440457,-18476.9925388,0.00019927,2]
[403883916,1769627440466,-7506.57784,0.00019927,2]
[403883918,1769627440475,-1557.908458,0.00019927,2]
[403883920,1769627440484,-1000.0,0.00019977,2]
[403883923,1769627440493,-324.0,0.0002,15]
[403883924,1769627440503,-154.01,0.00020108,2]
[403883927,1769627440513,-166.66,0.00020175,2]
[403883929,1769627440522,-150.0,0.00020386,2]
[403883931,1769627440531,-4122.7743042,0.00020428,2]
[403883932,1769627440541,-1674.9439156,0.00020428,2]
[403883934,1769627440551,-347.6163637,0.00020428,2]
[403883936,1769627440562,-158.77791206,0.0002054,2]
[403883939,1769627440571,-78242.82767705,0.00021,2]
[403883941,1769627440581,-161.31989366,0.00021,2]
[403883943,1769627440592,-860.8,0.00021062,2]
[403883945,1769627440602,-1000.0,0.00021121,2]
[403883947,1769627440612,-154.01,0.00021166,2]
[403883949,1769627440622,-346.0,0.000213,5]
[403883951,1769627440631,-823.0,0.00021373,2]
[403883953,1769627440641,-250.0,0.00021457,2]
[403883955,1769627440651,-155.0,0.00021599,2]
[403883957,1769627440661,-487.62,0.00021858,2]
[403883959,1769627440671,-5000.0,0.00021918,2]
[403883961,1769627440681,-499.999999,0.00021973,2]
[403883963,1769627440689,-160.09424111,0.00021973,2]
[403883965,1769627440699,-454.62309315,0.00021973,2]
[403883967,1769627440711,-241.67,0.00022,7]
[403883969,1769627440720,-860.8,0.00022115,2]
[403883971,1769627440733,-487.62,0.00022132,2]
[403883973,1769627440743,-161.02719989,0.00022151,2]
[403883975,1769627440753,-154.01,0.00022225,2]
[403883977,1769627440763,-487.62,0.00022406,2]
[403883979,1769627440772,-218.28,0.0002268,2]
[403883981,1769627440781,-500.0,0.00022772,2]
[403883983,1769627440791,-545.04649337,0.00022772,2]
[403883986,1769627440801,-500.0,0.00022772,2]
[403883987,1769627440810,-500.0,0.00022772,2]
[403883990,1769627440820,-179.30657264,0.00022913,2]
[403883992,1769627440829,-1039.95171242,0.00023009,2]
[403883994,1769627440839,-860.8,0.00023168,2]
[403883996,1769627440848,-1000.0,0.00023233,2]
[403883998,1769627440858,-154.01,0.00023283,2]
[403883999,1769627440867,-1152.0,0.00023359,2]
[403884002,1769627440878,-1500.0,0.000234,2]
[403884004,1769627440887,-6835.0,0.00023492,2]
[403884006,1769627440896,-500.0,0.00023534,2]
[403884008,1769627440905,-183.1134535,0.00023736,2]
[403884010,1769627440915,-860.8,0.00024221,2]
[403884012,1769627440924,-500.0,0.00024274,2]
[403884014,1769627440934,-408.84237777,0.00024286,2]
[403884016,1769627440944,-154.01,0.00024341,2]
[403884018,1769627440954,-1000.0,0.00024658,2]
[403884020,1769627440963,-155.0,0.00025199,2]
[403884022,1769627440972,-305.37481683,0.00025259,2]
[403884024,1769627440982,-860.8,0.00025274,2]
[403884026,1769627440991,-1000.0,0.00025345,2]
[403884028,1769627441000,-7666.61,0.00025385,2]
[403884030,1769627441009,-154.01,0.00025399,2]
[403884032,1769627441022,-161.31989366,0.00025515,56]
[403884034,1769627441032,-286.0,0.00025529,2]
[403884036,1769627441041,-158.77791206,0.00025675,2]
[403884038,1769627441052,-150.0,0.000258,14]
[403884040,1769627441063,-161.02719989,0.00026403,2]
[403884042,1769627441072,-150.0,0.00027369,2]
[403884044,1769627441081,-1863.66216343,0.00027397,2]
[403884046,1769627441091,-300.0,0.00027397,2]
[403884048,1769627441102,-750.0,0.00027397,20]
[403884050,1769627441112,-151.0,0.00027397,7]
[403884051,1769627441122,-151.0,0.00027397,7]
[403884054,1769627441132,-337.52,0.00027809,2]
[403884056,1769627441142,-1039.95171242,0.00028118,2]
[403884057,1769627441151,-241.67,0.000296,7]
[403884059,1769627441161,-161.31989365,0.00029866,120]
[403884061,1769627441171,-5705.36934082,0.0003,30]
[403884063,1769627441181,-1000.33448537,0.0003,2]
[403884065,1769627441191,-390.01,0.000306,14]
[403884067,1769627441200,-161.02719989,0.00030654,2]
[403884069,1769627441210,-408.84237777,0.00030672,2]
[403884071,1769627441219,-212.08876731,0.00030672,2]
[403884073,1769627441229,-1762.00060636,0.00030672,2]
[403884075,1769627441238,-158.77791206,0.0003081,2]
[403884077,1769627441248,-2980.72666491,0.0003121,2]
[403884079,1769627441257,-155.0,0.00032398,2]
[403884081,1769627441267,-5930.0,0.00032743,2]
[403884084,1769627441276,-567.0,0.00032743,2]
[403884086,1769627441286,-6572.0,0.00032743,2]
[403884088,1769627441295,-510.39,0.000332,14]
[403884089,1769627441304,-1541.59,0.000332,14]
[403884092,1769627441314,-386.48,0.000332,2]
[403884094,1769627441324,-1039.95171242,0.00033226,2]
[403884096,1769627441333,-152.0,0.00034426,3]
[403884098,1769627441342,-11301.0,0.00034516,5]
[403884099,1769627441352,-151.0,0.00034516,31]
[403884101,1769627441361,-151.0,0.00034516,31]
[403884103,1769627441370,-151.0,0.00034516,31]
[403884105,1769627441379,-182.151953,0.00034516,31]
[403884107,1769627441388,-182.151953,0.00034516,31]
[403884109,1769627441398,-182.151953,0.00034516,31]
[403884111,1769627441408,-182.151953,0.00034516,31]
[403884113,1769627441418,-218.159228,0.00034516,31]
[403884115,1769627441426,-218.159228,0.00034516,31]
[403884117,1769627441435,-218.159228,0.00034516,31]
[403884119,1769627441444,-218.159228,0.00034516,31]
[403884121,1769627441454,-161.02719989,0.00034905,2]
[403884123,1769627441463,-1999.0,0.00035616,120]
[403884125,1769627441472,-151.0,0.00035616,31]
[403884127,1769627441481,-151.0,0.00035616,7]
[403884129,1769627441491,-151.0,0.00035616,7]
[403884131,1769627441499,-500.0,0.00035616,7]
[403884133,1769627441509,-500.0,0.00035616,7]
[403884135,1769627441518,-500.0,0.00035616,7]
[403884137,1769627441527,-500.0,0.00035616,7]
[403884139,1769627441536,-500.0,0.00035616,7]
[403884141,1769627441545,-500.0,0.00035616,7]
[403884143,1769627441558,-500.0,0.00035616,7]
[403884146,1769627441567,-500.0,0.00035616,7]
[403884148,1769627441577,-500.0,0.00035616,7]
[403884150,1769627441585,-500.0,0.00035616,7]
[403884152,1769627441595,-500.0,0.00035616,7]
[403884154,1769627441604,-612.24408379,0.00035616,7]
[403884156,1769627441614,-408.35,0.00035616,30]
[403884158,1769627441622,-1818.324,0.00035676,42]